bitfinex/quotes_SOLUSD_20241005
["timestamp","ask_amount","ask_price","bid_price","bid_amount"]
[1728139743868,1.74126729,143.58,143.54,6.9664]
[1728139744041,6.9652,143.57,143.53,33.3525]
[1728139744245,1.74145835,143.56,143.51,50.0]
[1728139744447,1.74170927,143.58,143.51,50.0]
[1728139744662,6.9653,143.57,143.52,58.36077732]
[1728139744864,1.74159524,143.56,143.52,58.36077732]
[1728139745271,8.70729524,143.56,143.52,56.9675]
[1728139745576,8.70729524,143.56,143.51,6.968]
[1728139745871,8.70729524,143.56,143.51,56.968]
[1728139746988,6.9671,143.54,143.51,50.0]
[1728139747273,6.9671,143.54,143.5,17.4212]
[1728139747467,6.9681,143.51,143.46,50.0]
[1728139747772,6.9681,143.51,143.47,6.97]
[1728139747972,6.9681,143.51,143.46,50.0]
[1728139748170,1.74221639,143.5,143.46,56.9705]
[1728139748648,8.71091639,143.5,143.46,50.0]
[1728139751158,6.967,143.54,143.49,56.9691]
[1728139751364,6.6408,143.55,143.47,80.47979216]
[1728139751672,6.6408,143.55,143.48,1.39368308]
[1728139751673,6.9672,143.53,143.48,1.39368308]
[1728139751878,6.9672,143.53,143.48,8.36318308]
[1728139752358,6.9672,143.53,143.48,58.36318308]
[1728139753186,1.74208089,143.52,143.48,58.36318308]
[1728139753352,1.74208089,143.52,143.47,67.4242]
[1728139753561,6.968,143.52,143.47,67.4242]
[1728139753754,6.968,143.52,143.47,74.3941]
[1728139754079,1.74221039,143.51,143.47,74.3941]
[1728139754273,6.968,143.52,143.47,74.3941]
[1728139754478,1.74220953,143.51,143.47,74.3941]
[1728139754863,6.968,143.52,143.48,1.39378187]
[1728139755572,6.968,143.52,143.48,58.36328187]
[1728139758257,6.6408,143.55,143.51,56.968]
[1728139758258,1.74210806,143.55,143.51,56.968]
[1728139758458,17.86847123,143.56,143.49,67.4219]
[1728139758674,8.70840664,143.55,143.5,6.9685]
[1728139758877,8.70840664,143.55,143.5,58.36194531]
[1728139759077,17.8685641,143.56,143.51,6.968]
[1728139759380,17.8685641,143.56,143.5,50.0]
[1728139759685,6.9663,143.55,143.5,56.9685]
[1728139759885,1.74185076,143.54,143.5,6.9685]
[1728139760070,6.9663,143.55,143.51,1.39347898]
[1728139760071,8.70814873,143.55,143.51,1.39347898]
[1728139760769,8.70814873,143.55,143.5,6.9685]
[1728139762174,6.5907,143.59,143.54,50.0]
[1728139762372,8.70645514,143.58,143.54,50.0]
[1728139762576,8.70645514,143.58,143.53,6.9667]
[1728139763092,8.70645514,143.58,143.53,56.9667]
[1728139764388,1.74135514,143.58,143.53,56.9667]
[1728139764568,6.9662,143.55,143.51,17.4194]
[1728139764767,6.5907,143.59,143.49,50.0]
[1728139764768,6.9679,143.52,143.49,50.0]
[1728139764969,6.9679,143.52,143.48,24.393]
[1728139765169,8.70846446,143.54,143.49,56.9689]
[1728139765690,8.70846446,143.54,143.49,58.36241768]
[1728139765867,6.9667,143.54,143.49,58.36241768]
[1728139766269,1.74190831,143.53,143.49,6.9689]
[1728139766793,8.70864964,143.54,143.49,8.36245971]
[1728139767490,15.4809,143.56,143.5,56.9685]
[1728139767786,6.9667,143.54,143.5,50.0]
[1728139767979,1.74190096,143.53,143.5,50.0]
[1728139768185,1.74190096,143.53,143.49,6.9691]
[1728139768388,8.70910096,143.53,143.48,74.393]
[1728139769584,8.70910096,143.53,143.49,50.0]
[1728139771501,8.70910096,143.53,143.49,56.969]
[1728139772104,8.70910096,143.53,143.49,58.36259096]
[1728139773476,8.70910096,143.53,143.49,56.969]
[1728139774989,6.9677,143.52,143.47,56.9697]
[1728139775189,6.9672,143.53,143.47,50.0]
[1728139775401,6.9672,143.53,143.49,56.969]
[1728139775600,6.9668,143.54,143.49,56.969]
[1728139776483,23.776884,143.55,143.49,50.0]
[1728139776683,1.74199224,143.54,143.49,50.0]
[1728139776883,6.9676,143.53,143.48,56.9695]
[1728139778001,6.9676,143.53,143.49,50.0]
[1728139781384,6.9676,143.53,143.48,56.9695]
[1728139784988,8.70962982,143.52,143.48,56.9695]
[1728139785300,15.4809,143.56,143.5,50.0]
[1728139785486,8.70794775,143.55,143.5,56.9685]
[1728139785697,22.4467,143.56,143.51,56.9681]
[1728139788091,22.4467,143.56,143.51,50.0]
[1728139788092,6.9658,143.56,143.51,50.0]
[1728139788393,6.9658,143.56,143.52,6.9675]
[1728139788588,1.74173875,143.58,143.51,50.0]
[1728139788803,6.9662,143.55,143.51,56.968]
[1728139790310,6.9662,143.55,143.52,1.39339089]
[1728139792015,6.9658,143.56,143.51,56.968]
[1728139793210,6.9662,143.55,143.51,56.968]
[1728139793403,6.9648,143.58,143.54,50.0]
[1728139793601,13.555,143.59,143.55,1.39301947]
[1728139794516,13.555,143.59,143.54,56.9665]
[1728139795094,13.555,143.59,143.53,17.4172]
[1728139795095,16.3391,143.6,143.56,50.0]
[1728139795304,23.303,143.6,143.57,1.39286577]
[1728139795506,10.23732529,143.64,143.59,50.0]
[1728139795795,22.8643,143.71,143.64,50.0]
[1728139795796,8.70093328,143.68,143.64,50.0]
[1728139796216,6.9603,143.68,143.64,50.0]
[1728139796819,1.74017014,143.7,143.64,50.0]
[1728139796997,1.74017014,143.7,143.65,1.39207452]
[1728139797322,8.69917014,143.7,143.64,50.0]
[1728139797705,1.74017014,143.7,143.64,50.0]
[1728139797902,6.9594,143.69,143.65,1.39208218]
[1728139798213,6.9594,143.69,143.64,56.9618]
[1728139798422,6.9594,143.69,143.65,1.39207648]
[1728139800302,6.9604,143.67,143.62,67.407]
[1728139800826,6.9608,143.66,143.62,67.407]
[1728139801315,1.74033411,143.65,143.61,1.39226729]
[1728139801512,6.9637,143.6,143.57,50.0]
[1728139802634,6.9637,143.6,143.55,40.7289]
[1728139802635,6.9637,143.6,143.56,50.0]
[1728139803004,6.9652,143.58,143.54,50.0]
[1728139803713,1.74125557,143.62,143.54,50.0]
[1728139803714,23.776884,143.61,143.54,50.0]
[1728139803908,6.9657,143.57,143.54,50.0]
[1728139804097,1.74129517,143.6,143.54,50.0]
[1728139804295,1.74129517,143.6,143.52,6.9676]
[1728139804296,6.9648,143.58,143.52,56.9676]
[1728139804500,1.74129517,143.6,143.53,50.0]
[1728139804701,6.9652,143.57,143.53,50.0]
[1728139805006,6.9652,143.57,143.52,6.9676]
[1728139805203,8.70721641,143.56,143.51,74.3876]
[1728139805518,6.9657,143.56,143.51,74.3876]
[1728139806233,6.9657,143.56,143.52,1.39327337]
[1728139806398,6.9656,143.57,143.52,8.36087337]
[1728139806724,8.70739307,143.56,143.51,67.4195]
[1728139806925,6.9658,143.56,143.51,67.4195]
[1728139807622,8.70791675,143.55,143.51,50.0]
[1728139807800,6.9663,143.55,143.5,50.0]
[1728139808004,1.74177101,143.57,143.5,50.0]
[1728139808005,6.9671,143.53,143.5,50.0]
[1728139808223,6.9671,143.53,143.48,89.4698]
[1728139808432,6.9671,143.53,143.48,74.3932]
[1728139808811,6.9671,143.53,143.49,50.0]
[1728139809012,6.9671,143.53,143.5,1.39353392]
[1728139809206,1.7419174,143.56,143.5,1.39353392]
[1728139809711,1.7419174,143.56,143.49,50.0]
[1728139809913,1.7419174,143.56,143.5,50.0]
[1728139810111,6.9662,143.55,143.51,1.3934147]
[1728139810314,8.70846777,143.54,143.5,50.0]
[1728139811125,6.9673,143.53,143.49,50.0]
[1728139811307,23.776884,143.55,143.48,17.4237]
[1728139811706,1.74197102,143.54,143.48,17.4237]
[1728139811925,23.776884,143.55,143.48,17.4237]
[1728139812123,6.9678,143.52,143.48,17.4237]
[1728139813032,6.9678,143.52,143.48,24.3932]
[1728139813329,6.9678,143.52,143.49,50.0]
[1728139814247,6.9678,143.52,143.48,74.3932]
[1728139815625,6.9682,143.51,143.46,56.9701]
[1728139816125,1.74197836,143.56,143.46,56.9701]
[1728139816126,1.74197836,143.56,143.47,1.39373651]
[1728139816433,6.9677,143.52,143.48,50.0]
[1728139818426,23.776884,143.55,143.47,6.9696]
[1728139818630,6.9682,143.51,143.46,56.9705]
[1728139819323,6.9676,143.53,143.48,50.0]
[1728139819518,6.9677,143.52,143.47,56.9697]
[1728139820925,6.9677,143.52,143.48,8.36311665]
[1728139821229,1.74214481,143.54,143.49,50.0]
[1728139821810,1.74214481,143.54,143.48,56.9695]
[1728139822015,6.9676,143.53,143.48,56.9695]
[1728139822215,6.9677,143.52,143.48,56.9695]
[1728139823034,6.9681,143.51,143.47,74.3944]
[1728139823921,6.9681,143.51,143.47,24.3944]
[1728139824717,6.9681,143.51,143.48,1.39376199]
[1728139824923,6.9678,143.52,143.48,51.39376199]
[1728139825130,6.89323963,143.52,143.48,51.39376199]
[1728139826738,6.89323963,143.52,143.48,50.0]
[1728139826933,6.89323963,143.52,143.47,24.3944]
[1728139827133,6.89323963,143.52,143.47,74.3944]
[1728139828138,6.89323963,143.52,143.48,58.36311313]
[1728139828349,6.89323963,143.52,143.48,56.9695]
[1728139829136,6.9673,143.53,143.49,1.39361463]
[1728139829341,6.9673,143.53,143.49,8.36271463]
[1728139830052,6.9662,143.55,143.5,56.9684]
[1728139830224,6.9662,143.55,143.5,50.0]
[1728139830436,6.9662,143.55,143.51,6.968]
[1728139831027,6.9662,143.55,143.52,1.39335773]
[1728139832647,1.74171686,143.56,143.52,51.39335773]
[1728139832842,8.70751686,143.56,143.52,51.39335773]
[1728139833054,24.94911031,143.57,143.52,58.36055773]
[1728139833243,8.19167786,143.58,143.52,51.39335773]
[1728139833440,16.475,143.6,143.57,6.9652]
[1728139833744,6.4654,143.62,143.59,6.9641]
[1728139834045,6.4654,143.62,143.58,25.76918447]
[1728139834624,6.4654,143.62,143.57,50.0]
[1728139834839,6.9633,143.61,143.57,50.0]
[1728139835741,6.9633,143.61,143.56,50.0]
[1728139836121,1.74099123,143.61,143.54,50.0]
[1728139836419,6.9648,143.58,143.54,50.0]
[1728139838246,6.9643,143.59,143.55,1.39296718]
[1728139838454,1.74099123,143.61,143.56,50.0]
[1728139838638,6.4654,143.62,143.57,1.39272866]
[1728139838945,13.4282,143.62,143.57,58.35782866]
[1728139839146,13.4282,143.62,143.58,6.9646]
[1728139839147,6.4654,143.62,143.58,6.9646]
[1728139839751,6.4654,143.62,143.57,51.39272866]
[1728139840046,6.4654,143.62,143.56,17.4135]
[1728139840047,6.9636,143.61,143.56,74.3791]
[1728139840236,6.9636,143.61,143.57,1.39249427]
[1728139840837,8.2063832,143.62,143.57,1.39249427]
[1728139841152,6.9646,143.59,143.54,56.9662]
[1728139841351,6.4654,143.62,143.54,50.0]
[1728139841544,6.9634,143.61,143.56,74.3791]
[1728139841735,13.4282,143.62,143.58,50.0]
[1728139843446,6.9624,143.63,143.58,56.9646]
[1728139843832,6.4624,143.63,143.58,56.9646]
[1728139844235,6.4624,143.63,143.59,50.0]
[1728139845746,6.4624,143.63,143.6,1.39252757]
[1728139847950,5.9624,143.63,143.6,1.39252757]
[1728139848171,5.9624,143.63,143.59,56.9642]
[1728139848360,5.9624,143.63,143.58,50.0]
[1728139848566,5.9624,143.63,143.58,56.9646]
[1728139849369,5.9624,143.63,143.59,51.39252264]
[1728139851546,6.9628,143.62,143.59,50.0]
[1728139851752,6.9634,143.61,143.57,50.0]
[1728139852669,6.9634,143.61,143.57,56.9652]
[1728139853865,1.74074079,143.62,143.57,50.0]
[1728139854042,6.9638,143.6,143.57,50.0]
[1728139854242,1.74097901,143.63,143.57,50.0]
[1728139854577,6.9634,143.61,143.57,50.0]
[1728139854868,6.9634,143.61,143.56,24.379]
[1728139854869,6.9634,143.61,143.58,1.39274363]
[1728139855568,1.74097901,143.63,143.57,1.39270826]
[1728139855740,1.74097901,143.63,143.57,51.39279824]
[1728139855936,6.9633,143.61,143.57,51.39279824]
[1728139856962,6.9633,143.61,143.57,1.39279824]
[1728139859650,23.776884,143.62,143.56,67.4135]
[1728139859858,6.9638,143.6,143.56,67.4135]
[1728139860053,6.9638,143.6,143.56,17.4135]
[1728139860242,6.9638,143.6,143.57,1.39282914]
[1728139860663,6.9638,143.6,143.56,17.4135]
[1728139861748,6.9643,143.59,143.56,17.4135]
[1728139862469,6.9647,143.58,143.55,50.0]
[1728139863371,1.74104733,143.61,143.56,1.39294696]
[1728139863372,6.9643,143.59,143.56,1.39294696]
[1728139865081,1.74104733,143.61,143.56,1.39294696]
[1728139865267,6.9662,143.56,143.53,50.0]
[1728139865463,1.74137087,143.59,143.52,50.0]
[1728139865664,7.95257087,143.59,143.52,50.0]
[1728139865863,6.9658,143.56,143.52,50.0]
[1728139866067,6.9658,143.56,143.52,56.9675]
[1728139867587,6.9658,143.56,143.53,1.39316752]
[1728139868377,7.95257087,143.59,143.53,1.39316752]
[1728139868378,6.9653,143.57,143.53,1.39316752]
[1728139868560,6.9653,143.57,143.53,51.39316752]
[1728139869086,8.7067299,143.57,143.52,6.9675]
[1728139869884,8.7067299,143.57,143.52,56.9675]
[1728139870876,8.7067299,143.57,143.52,6.9675]
[1728139871063,6.9658,143.56,143.51,56.968]
[1728139871757,6.9658,143.56,143.51,6.968]
[1728139871958,6.9664,143.55,143.5,74.3894]
[1728139873184,6.9664,143.55,143.48,13.05346686]
[1728139873185,6.9682,143.51,143.48,50.0]
[1728139874075,8.21084281,143.54,143.48,50.0]
[1728139874265,6.9677,143.52,143.48,50.0]
[1728139875398,6.9677,143.52,143.47,6.97]
[1728139876680,6.9682,143.51,143.47,6.97]
[1728139877199,8.21084281,143.54,143.46,24.3959]
[1728139877381,6.9686,143.5,143.46,24.3959]
[1728139878107,6.9686,143.5,143.46,17.4255]
[1728139878596,6.9694,143.49,143.45,50.0]
[1728139879491,6.9697,143.48,143.44,50.0]
[1728139879778,6.9701,143.47,143.44,50.0]
[1728139880585,6.9701,143.47,143.43,74.4015]
[1728139881201,23.776884,143.49,143.43,50.0]
[1728139881390,6.9706,143.46,143.43,50.0]
[1728139881594,6.9706,143.46,143.42,50.0]
[1728139881905,6.9711,143.45,143.4,90.3409]
[1728139882091,1.74288279,143.44,143.4,50.0]
[1728139882411,6.9719,143.44,143.38,56.974]
[1728139882707,8.71493133,143.44,143.39,50.0]
[1728139883615,6.9719,143.44,143.39,50.0]
[1728139883911,14.79347261,143.48,143.43,6.9715]
[1728139884077,6.0805,143.48,143.44,51.39405917]
[1728139884283,6.0805,143.48,143.44,58.36555917]
[1728139884505,8.71117395,143.5,143.45,6.9709]
[1728139884813,8.71117395,143.5,143.46,1.39391305]
[1728139886082,22.2953,143.51,143.46,58.36431305]
[1728139888292,22.2953,143.51,143.46,56.9704]
[1728139888699,6.9682,143.51,143.47,1.39377952]
[1728139889801,6.9682,143.51,143.46,56.9704]
[1728139891314,6.9682,143.51,143.47,1.39377784]
[1728139892121,16.81291883,143.54,143.48,50.0]
[1728139892301,22.0374,143.54,143.49,58.36217338]
[1728139892486,22.0374,143.54,143.5,6.9685]
[1728139892691,15.0707,143.54,143.51,1.39341116]
[1728139893303,6.0935,143.56,143.51,51.39341116]
[1728139893493,13.0592,143.56,143.51,58.36131116]
[1728139893695,13.0592,143.56,143.51,56.9679]
[1728139893911,1.74160143,143.55,143.49,50.0]
[1728139894211,6.9672,143.53,143.49,50.0]
[1728139894387,6.9672,143.53,143.5,1.39349041]
[1728139895813,1.74160143,143.55,143.48,17.4229]
[1728139896017,6.9687,143.5,143.47,50.0]
[1728139896316,1.74160143,143.55,143.47,50.0]
[1728139896317,6.9681,143.51,143.47,50.0]
[1728139897505,6.9681,143.51,143.46,56.9705]
[1728139898413,6.9677,143.52,143.47,1.39368484]
[1728139898615,6.9672,143.53,143.48,56.9692]
[1728139898819,6.9672,143.53,143.49,1.39353739]
[1728139899621,6.9672,143.53,143.48,56.9692]
[1728139903403,6.9672,143.53,143.49,1.39356819]
[1728139903598,6.9672,143.53,143.48,56.9692]
[1728139905321,6.9672,143.53,143.49,1.39356909]
[1728139907426,6.9672,143.53,143.48,56.9692]
[1728139909514,6.9672,143.53,143.48,6.9692]
[1728139909827,6.9672,143.53,143.49,8.36257079]
[1728139910035,6.9667,143.54,143.49,58.36257079]
[1728139910338,13.0593,143.56,143.52,6.9675]
[1728139910624,6.9658,143.56,143.53,1.39322606]
[1728139912099,24.17103881,143.58,143.53,1.39322606]
[1728139912328,24.17103881,143.58,143.51,50.0]
[1728139912329,24.17103881,143.58,143.54,1.39315638]
[1728139912626,6.965,143.58,143.54,1.39315638]
[1728139912838,8.70633386,143.58,143.54,1.39315638]
[1728139913220,6.965,143.58,143.54,1.39315638]
[1728139913425,8.70635398,143.58,143.54,1.39315638]
[1728139913611,1.74135398,143.58,143.52,17.4186]
[1728139913816,6.9662,143.55,143.52,17.4186]
[1728139914617,6.9662,143.55,143.51,56.968]
[1728139915332,6.9657,143.56,143.52,8.36067216]
[1728139915635,6.9657,143.56,143.52,6.9675]
[1728139916011,6.9657,143.56,143.52,56.9675]
[1728139917218,6.9657,143.56,143.52,50.0]
[1728139917906,23.776884,143.57,143.5,50.0]
[1728139918105,6.9667,143.54,143.5,56.9685]
[1728139919139,6.9667,143.54,143.51,50.0]
[1728139920110,6.9667,143.54,143.5,56.9685]
[1728139920936,8.70735039,143.56,143.52,6.9675]
[1728139921137,6.9663,143.55,143.51,17.4197]
[1728139921318,6.9667,143.54,143.5,6.9685]
[1728139922213,6.9667,143.54,143.5,56.9685]
[1728139922429,1.74171783,143.53,143.48,67.4235]
[1728139922736,1.74171783,143.53,143.45,6.0903]
[1728139922737,6.9681,143.51,143.46,56.9705]
[1728139923408,6.9681,143.51,143.46,6.9705]
[1728139924049,6.9681,143.51,143.47,1.39374928]
[1728139924728,6.9681,143.51,143.46,56.9705]
[1728139925531,6.9681,143.51,143.46,6.9705]
[1728139926914,6.9681,143.51,143.47,1.39377069]
[1728139927948,6.9681,143.51,143.46,56.9705]
[1728139930934,6.9694,143.49,143.46,50.0]
[1728139931140,6.9687,143.5,143.46,50.0]
[1728139931538,6.9682,143.51,143.47,1.39375246]
[1728139931950,6.9682,143.51,143.46,56.9703]
[1728139936131,6.9677,143.52,143.47,1.39374899]
[1728139936451,16.2926,143.57,143.5,50.0]
[1728139936842,16.2926,143.57,143.53,6.967]
[1728139937358,16.2926,143.57,143.54,1.39315292]
[1728139937952,23.2579,143.57,143.54,1.39315292]
[1728139938669,23.2579,143.57,143.53,1.3931638]
[1728139938953,6.9663,143.55,143.51,17.4197]
[1728139939466,6.9663,143.55,143.52,1.39330927]
[1728139939953,1.74164607,143.54,143.49,56.969]
[1728139940154,1.74183583,143.55,143.49,56.969]
[1728139940861,1.74183583,143.55,143.5,1.3934657]
[1728139941045,6.9667,143.54,143.5,1.3934657]
[1728139941563,1.7418293,143.53,143.48,24.393]
[1728139941737,6.9672,143.53,143.49,1.39354466]
[1728139942245,6.9672,143.53,143.49,58.36254466]
[1728139942449,1.74186986,143.55,143.5,6.9681]
[1728139942647,30.742884,143.56,143.51,1.3933597]
[1728139942953,23.2579,143.57,143.52,56.9672]
[1728139943156,23.2579,143.57,143.53,1.39316213]
[1728139943362,16.2926,143.57,143.5,80.49109145]
[1728139943663,6.9657,143.56,143.51,6.9681]
[1728139943845,6.9657,143.56,143.51,56.9681]
[1728139944359,18.03418655,143.57,143.51,56.9681]
[1728139944566,6.9662,143.55,143.51,56.9681]
[1728139944746,6.9662,143.55,143.52,1.39332026]
[1728139946549,30.742684,143.56,143.52,1.39332026]
[1728139947058,6.9658,143.56,143.52,1.39332026]
[1728139947468,6.9658,143.56,143.51,56.9681]
[1728139947768,8.70797502,143.55,143.5,24.3889]
[1728139949771,1.74157502,143.55,143.5,24.3889]
[1728139949976,6.9667,143.54,143.5,17.4204]
[1728139950266,6.9675,143.53,143.48,70.04009145]
[1728139950467,6.9678,143.52,143.47,24.3948]
[1728139951171,1.74199543,143.54,143.47,24.3948]
[1728139951172,6.9681,143.51,143.47,24.3948]
[1728139951467,6.9681,143.51,143.47,74.3948]
[1728139952259,6.9681,143.51,143.47,24.3948]
[1728139952573,6.9681,143.51,143.48,1.39369726]
[1728139953350,1.74199543,143.54,143.48,51.39369726]
[1728139953575,6.9673,143.53,143.49,6.969]
[1728139954368,6.9673,143.53,143.48,50.0]
[1728139954561,23.776884,143.55,143.48,6.9695]
[1728139954562,8.70971056,143.52,143.48,6.9695]
[1728139954764,6.9681,143.51,143.47,74.3949]
[1728139954964,6.9672,143.53,143.48,8.36318379]
[1728139955165,6.9672,143.53,143.48,6.9695]
[1728139955556,6.9672,143.53,143.49,1.39355163]
[1728139955872,6.9672,143.53,143.49,8.36255163]
[1728139956063,6.9672,143.53,143.48,6.9694]
[1728139956250,8.7097063,143.52,143.48,6.9694]
[1728139956567,6.9677,143.52,143.48,6.9694]
[1728139960266,19.15940338,143.54,143.47,50.0]
[1728139960449,6.9681,143.51,143.47,50.0]
[1728139960841,6.9681,143.51,143.46,56.9705]
[1728139963867,6.9692,143.49,143.44,90.0594]
[1728139964173,6.9692,143.49,143.45,50.0]
[1728139964349,6.9687,143.5,143.46,1.39386615]
[1728139964958,6.9687,143.5,143.45,56.9709]
[1728139965271,6.9687,143.5,143.45,6.9709]
[1728139966385,6.9687,143.5,143.45,56.9709]
[1728139967080,6.9692,143.49,143.45,56.9709]
[1728139967251,6.9692,143.49,143.45,6.9709]
[1728139969979,6.9692,143.49,143.44,74.3998]
[1728139971478,6.9696,143.48,143.44,74.3998]
[1728139971656,17.27376055,143.51,143.43,6.972]
[1728139971657,1.74252421,143.49,143.43,6.972]
[1728139972671,1.74253886,143.5,143.43,6.972]
[1728139973172,6.9701,143.47,143.43,6.972]
[1728139974563,1.74253886,143.5,143.43,6.972]
[1728139974766,6.9697,143.48,143.43,56.972]
[1728139976685,1.74250455,143.47,143.42,6.9724]
[1728139976885,23.776884,143.49,143.42,6.9724]
[1728139977192,1.74274481,143.48,143.42,6.9724]
[1728139977363,23.776884,143.49,143.42,6.9724]
[1728139977564,1.74274392,143.48,143.43,50.0]
[1728139977876,6.9701,143.47,143.43,58.36619513]
[1728139978686,6.9701,143.47,143.43,56.972]
[1728139979099,6.9701,143.47,143.43,6.972]
[1728139980183,6.9701,143.47,143.42,6.9723]
[1728139980392,6.9701,143.47,143.43,1.39418707]
[1728139980872,6.9701,143.47,143.42,6.9723]
[1728139981287,6.9701,143.47,143.42,56.9723]
[1728139981491,1.7426022,143.5,143.44,50.0]
[1728139981492,6.9697,143.48,143.44,50.0]
[1728139981693,17.27383633,143.51,143.45,1.39394907]
[1728139981994,15.5314,143.51,143.46,50.0]
[1728139982194,15.5314,143.51,143.47,1.393735]
[1728139982489,17.27356509,143.51,143.47,1.393735]
[1728139982691,24.24166509,143.51,143.47,1.393735]
[1728139983078,24.24166509,143.51,143.46,56.9705]
[1728139983387,24.24166509,143.51,143.47,1.39378473]
[1728139983586,24.24166509,143.51,143.46,56.9705]
[1728139984373,24.24166509,143.51,143.46,6.9705]
[1728139985591,24.24166509,143.51,143.46,56.9705]
[1728139986684,17.27356509,143.51,143.46,56.9705]
[1728139986887,6.9687,143.5,143.45,24.3976]
[1728139987571,6.9687,143.5,143.45,74.3976]
[1728139988694,6.9692,143.49,143.45,17.4267]
[1728139988902,6.9696,143.48,143.45,17.4267]
[1728139989193,6.9696,143.48,143.41,19.69799145]
[1728139989194,6.9701,143.47,143.43,6.9719]
[1728139989392,6.9701,143.47,143.42,67.4307]
[1728139989393,1.74245842,143.48,143.42,74.4031]
[1728139989577,6.9706,143.46,143.42,74.4031]
[1728139989775,6.9706,143.46,143.42,24.4031]
[1728139989981,1.74245842,143.48,143.41,50.0]
[1728139990184,6.9711,143.45,143.41,56.9728]
[1728139990490,30.171884,143.47,143.39,50.0]
[1728139990699,6.395,143.47,143.42,6.972]
[1728139990897,6.395,143.47,143.43,1.3941106]
[1728139991477,6.395,143.47,143.42,56.972]
[1728139991678,13.3651,143.47,143.42,56.972]
[1728140006521,6.9706,143.46,143.42,56.972]
[1728140006905,6.9706,143.46,143.42,6.972]
[1728140007617,6.395,143.47,143.42,6.972]
[1728140007928,6.395,143.47,143.44,6.9714]
[1728140008126,13.3652,143.47,143.43,24.4018]
[1728140011232,6.9687,143.5,143.46,6.9703]
[1728140011414,6.9687,143.5,143.47,1.39376539]
[1728140011608,28.8434,143.51,143.47,1.39376539]
[1728140012233,21.8753,143.51,143.47,1.39376539]
[1728140012436,6.9686,143.5,143.45,74.398]
[1728140013349,6.9686,143.5,143.45,24.398]
[1728140016439,6.9686,143.5,143.45,74.398]
[1728140017037,6.9686,143.5,143.46,1.39380176]
[1728140017828,6.9686,143.5,143.45,74.398]
[1728140018641,8.71084787,143.5,143.45,24.398]
[1728140020139,1.74224787,143.5,143.45,17.4271]
[1728140020339,1.74224787,143.5,143.44,50.0]
[1728140020631,6.9697,143.48,143.43,6.9719]
[1728140020834,6.9697,143.48,143.43,56.9719]
[1728140021738,6.9702,143.47,143.43,6.9719]
[1728140021943,6.9706,143.46,143.42,74.403]
[1728140022258,6.9701,143.47,143.43,1.39410724]
[1728140022420,6.9701,143.47,143.43,8.36600724]
[1728140023018,6.9701,143.47,143.43,58.36600724]
[1728140025032,6.9701,143.47,143.43,6.9719]
[1728140025834,6.9701,143.47,143.44,1.39404067]
[1728140027036,6.9701,143.47,143.43,56.9719]
[1728140028128,6.9707,143.46,143.43,50.0]
[1728140028425,6.9712,143.45,143.42,50.0]
[1728140028752,6.9712,143.45,143.4,56.973]
[1728140029526,6.9712,143.45,143.4,6.973]
[1728140030648,6.9717,143.44,143.4,8.36729725]
[1728140032249,21.6486,143.46,143.4,8.36729725]
[1728140032451,28.6192,143.46,143.41,56.9729]
[1728140033644,6.97,143.48,143.43,6.9718]
[1728140033830,6.97,143.48,143.44,1.39407059]
[1728140034732,6.9701,143.47,143.43,6.9718]
[1728140035067,6.9701,143.47,143.41,30.50269145]
[1728140035068,6.9705,143.46,143.41,24.4049]
[1728140035528,6.9705,143.46,143.42,1.39421543]
[1728140035728,6.9705,143.46,143.41,74.4049]
[1728140037654,1.74274769,143.49,143.43,50.0]
[1728140037953,6.97,143.48,143.43,6.9719]
[1728140038452,6.9702,143.47,143.43,6.9719]